[Event "39th Muensterland Open 2022"]
[Site "Muenster"]
[Date "2022.10.05"]
[Round "6.8"]
[White "Schliebener, Stephan"]
[Black "Quinones-Maletti, Julio Guillermo"]
[Result "1/2-1/2"]
[ECO "A37"]
[WhiteElo "2119"]
[BlackElo "2020"]
[Annotator "TA"]
[PlyCount "108"]
[EventDate "2022.10.01"]
[EventType "swiss"]
[EventCountry "GER"]
[SourceTitle "playchess.com"]
[Source "ChessBase"]
[SourceQuality "1"]
[TimeControl "40/5400+30:1800+30"]

{[%evp 12,108,14,0,5,0,7,-4,0,-6,-8,-12,0,-4,1,-39,-1,-95,-75,-96,-91,-110,-100,-142,-160,-221,-193,-185,-195,-222,-163,-212,-185,-170,-194,-181,-183,-215,-199,-204,-198,-222,-243,-423,-382,-375,-346,-364,-233,-313,-212,-350,-240,-283,-283,-473,-473,-464,-496,-456,-466,-469,-479,-410,-256,-231,-234,-245,-60,-141,0,-217,0,-125,12,12,2,4,19,18,12,0,0,0,0,0,0,0,8,8,8,8,8,8,8,-358,8,8,82]} 1. c4 {[%emt 0:00:02]} c5 {[%emt 0:03:46]} 2. Nf3 {[%emt 0:00:27]} Nc6 {[%emt 0:01:37]} 3. g3 {[%emt 0:01:14]} g6 {[%emt 0:00:37]} 4. Bg2 {[%emt 0:00:28]} Bg7 {[%emt 0:00:53]} 5. O-O {[%emt 0:00:07]} d6 {[%emt 0:00:42]} 6. Nc3 {[%emt 0:00:08]} e6 {[%emt 0:00:48]} 7. a3 {[%emt 0:01:16]} Nge7 {[%emt 0:00:17] A37: Symmetrical English vs ...g6: 4 Bg2 Bg7 5 Nf3.} 8. Rb1 {[%emt 0:00:08]} O-O {[%emt 0:02:05]} 9. d3 {[%emt 0:01:03]} b6 {[%emt 0:01:27]} 10. Bg5 {[%emt 0:01:16]} h6 {[%emt 0:01:07]} 11. Bd2 {[%emt 0:00:05]} Bb7 {[%emt 0:00:53]} 12. b4 {[%emt 0:00:30]} Qd7 {[%emt 0:02:06]} 13. b5 {[%emt 0:05:35]} Ne5 {[%emt 0:07:34] [#]} 14. Ne1 $146 {[%emt 0:09:44]} (14. Nxe5 $11 dxe5 15. Bxb7 Qxb7 16. a4) ({Predecessor:} 14. Nxe5 dxe5 15. a4 Kh7 16. f3 Nf5 17. Qc1 Nd4 18. a5 Rad8 19. Rf2 Nxe2+ 20. Nxe2 Qxd3 {1-0 (40) Brendel,O (2324)-Bus,T (2182) Germany 2016}) 14... Bxg2 {[%emt 0:02:47]} (14... d5 {keeps more tension.} 15. Bf4 Ng4 16. e4 f5) 15. Nxg2 {[%emt 0:00:13]} d5 {[%emt 0:18:38]} 16. f4 {[%emt 0:15:06]} Ng4 {[%emt 0:00:37]} 17. cxd5 {[%emt 0:03:14]} exd5 {[%emt 0:01:10][%cal Be6d5,Bd5d4,Bd4e3][%mdl 32]} ({Weaker is} 17... Nxd5 18. Qe1 $15) 18. Qe1 {[%emt 0:04:23]} (18. h3 $17 {keeps fighting.} Nf6 19. Kh2) 18... d4 {[%emt 0:12:38]} 19. Ne4 {[%emt 0:07:04]} Nd5 {[%emt 0:00:24]} 20. Rf3 {[%emt 0:03:35]} Rae8 {[%emt 0:05:37][%cal Oc5c4,Ba8e8,Be8e6,Be6g6][%mdl 32]} 21. Nf2 {[%emt 0:07:12]} (21. h3 $142 Ngf6 22. Nxf6+ Bxf6 23. Kh2) 21... Nge3 {[%emt 0:08:11]} 22. Bxe3 {[%emt 0:02:59]} dxe3 {[%emt 0:00:10]} ({Not} 22... Nxe3 23. Nxe3 Rxe3 24. Qf1 $17) 23. Nd1 {[%emt 0:00:06]} f5 {[%emt 0:03:32]} ({Stronger than} 23... Bd4 24. f5 $17) 24. Kh1 {[%emt 0:00:41]} Bd4 {[%emt 0:01:17]} 25. Qg1 {[%emt 0:02:16]} Re6 {[%emt 0:01:00][%cal Oa7a6]} 26. Rf1 {[%emt 0:03:57]} g5 {[%emt 0:05:13] Prevents Nh4.} 27. Ne1 $2 {[%emt 0:01:24]} (27. Rb3) 27... Rg6 {[%emt 0:04:09]} 28. fxg5 {[%emt 0:00:54]} hxg5 {[%emt 0:00:05]} 29. Nc2 {[%emt 0:06:58]} Qe6 {[%emt 0:05:45] Strongly threatening ...g4.} 30. Qg2 {[%emt 0:01:01]} Bg7 {[%emt 0:03:24]} 31. Rg1 {[%emt 0:04:29]} (31. g4 $142 f4 32. Rc1) 31... Re8 {[%emt 0:05:23]} 32. a4 {[%emt 0:02:02]} g4 {[%emt 0:01:05]} 33. Qf1 $2 {[%emt 0:00:56]} (33. Nb2) 33... Rh6 $19 {[%emt 0:00:43][%cal Oh6h2] [#] ( -> ...Rxh2+!)} 34. Rg2 {[%emt 0:00:12]} Rf8 {[%emt 0:00:29]} 35. Qg1 {[%emt 0:00:17][%cal Rd1e3]} Bd4 {[%emt 0:00:53]} 36. Rc1 {[%emt 0:00:34]} Qe5 {[%emt 0:00:26]} 37. Nxd4 {[%emt 0:00:51]} Qxd4 {[%emt 0:00:11]} 38. Rc4 {[%emt 0:00:09]} Qe5 {[%emt 0:00:49]} 39. Qe1 {[%emt 0:00:21]} Qa1 {[%emt 0:00:34]} (39... Rf7 $19 {And now ...Rg7 would win.} 40. a5 Rfh7) 40. Qf1 {[%emt 0:00:49]} (40. Qg1 $1 $15) 40... Qe5 {[%emt 0:00:21]} (40... Qh8 $17 41. a5 Rh5) 41. Qe1 $1 {[%emt 0:32:17]} Qa1 {[%emt 0:02:47]} (41... Rf7 $19 42. a5 Rfh7) 42. Qf1 $1 $17 {[%emt 0:00:00][%cal Od1e3]} Rf7 {[%emt 0:00:44] [#]} ({Black should play} 42... Qh8 $17 {aiming for ...Rf7.} 43. a5 Rh5) 43. Nxe3 $1 $11 {[%emt 0:00:00]} Qxf1+ {[%emt 0:03:19]} 44. Nxf1 {[%emt 0:00:00]} Re6 {[%emt 0:00:08]} 45. Rf2 {[%emt 0:00:00]} Kg7 {[%emt 0:00:13]} 46. e4 {[%emt 0:00:00]} fxe4 {[%emt 0:00:35]} 47. Rxf7+ {[%emt 0:00:00]} Kxf7 {[%emt 0:00:05]} 48. dxe4 {[%emt 0:00:00][%mdl 4096] Endgame KRN-KRN} Nf6 {[%emt 0:27:16]} 49. Ne3 {[%emt 0:18:57]} Rxe4 {[%emt 0:00:30]} 50. Rxe4 {[%emt 0:00:30]} Nxe4 {[%emt 0:00:30]} 51. Nxg4 {[%emt 0:00:30]} Ke6 {[%emt 0:00:30]} 52. Kg2 {[%emt 0:00:30] next Kf3 is good for White.} Nc3 {[%emt 0:00:30]} 53. Kh1 $2 {[%emt 0:00:30][%mdl 8192]} (53. Ne3 $11 {and White has nothing to worry.}) 53... Ne4 $2 (53... Nxa4 $19 {Hoping for ...Nc3.} 54. Kg2 Nc3) 54. Ne3 {[%emt 0:00:00]} Ke5 {[%emt 0:01:00] Black had all chances to win.  Weighted Error Value: White=0.39/Black=0.54} (54... Nc3 $11) 1/2-1/2

[Event "39th Muensterland Open 2022"]
[Site "Muenster"]
[Date "2022.10.05"]
[Round "6.9"]
[White "Althoff, Ralph"]
[Black "Quante, Lennart"]
[Result "1-0"]
[ECO "A49"]
[WhiteElo "1951"]
[BlackElo "2100"]
[Annotator "TA"]
[PlyCount "81"]
[EventDate "2022.10.01"]
[EventType "swiss"]
[EventCountry "GER"]
[SourceTitle "playchess.com"]
[Source "ChessBase"]
[SourceQuality "1"]
[TimeControl "40/5400+30:1800+30"]

{[%evp 9,80,15,21,19,27,17,27,22,38,0,2,-2,16,9,32,6,16,15,45,45,37,34,45,31,45,11,14,5,25,25,36,9,96,77,88,72,154,153,388,385,559,547,553,561,514,280,272,262,267,269,936,927,888,881,881,865,865,858,979,947,29978,29979,29984,29985,29985,29986,29986,29987,29987,29988,29988,29988,29999]} 1. d4 {[%emt 0:00:03]} Nf6 {[%emt 0:00:17]} 2. Nf3 {[%emt 0:00:06]} g6 {[%emt 0:00:08]} 3. g3 {[%emt 0:00:05]} Bg7 {[%emt 0:00:21]} 4. Bg2 {[%emt 0:00:06]} O-O {[%emt 0:00:20]} 5. O-O {[%emt 0:00:05]} Ne4 {[%emt 0:04:32]} 6. c4 {[%emt 0:03:49] A49: 1 d4 Nf6 2 Nf3 g6 3 g3: Anti-King's Indian systems.} c6 {[%emt 0:01:35]} 7. b3 {[%emt 0:01:41]} a5 {[%emt 0:00:09]} 8. Bb2 {[%emt 0:01:10] White has an edge.} a4 {[%emt 0:00:16] [#]} 9. b4 $146 {[%emt 0:00:52]} ({Predecessor:} 9. bxa4 Qa5 10. Qb3 Qxa4 11. Nc3 Nxc3 12. Bxc3 d6 13. Nd2 Qxb3 14. axb3 Rxa1 15. Bxa1 {1-0 (60) Repka,C (2488)-Proleiko,J (2131) Chesterfield 2020}) 9... d5 {[%emt 0:06:09]} 10. c5 {[%emt 0:10:17]} Bf5 {[%emt 0:14:46]} 11. a3 {[%emt 0:04:51]} Na6 {[%emt 0:02:52]} 12. Nfd2 {[%emt 0:05:36]} Nxd2 $1 {[%emt 0:01:55]} 13. Qxd2 {[%emt 0:01:21]} Bxb1 {[%emt 0:00:25]} 14. Raxb1 {[%emt 0:03:13]} Nc7 {[%emt 0:01:30]} 15. Rfd1 {[%emt 0:02:15]} Qd7 {[%emt 0:07:17]} 16. h4 {[%emt 0:03:15]} Rfe8 {[%emt 0:16:12]} 17. Qe3 {[%emt 0:14:14]} e5 {[%emt 0:09:28]} 18. dxe5 {[%emt 0:10:30]} Bxe5 {[%emt 0:00:34]} 19. Bxe5 {[%emt 0:03:33] This bishop pair is nice.} f6 $1 {[%emt 0:00:06]} 20. b5 {[%emt 0:07:39]} Rxe5 {[%emt 0:09:35] [#]} (20... Nxb5 $11 {remains equal.} 21. Qc1 (21. Rxb5 Rxe5 22. Bxd5+ Kg7 $11) 21... Rxe5) 21. bxc6 $1 $16 {[%emt 0:01:03]} bxc6 {[%emt 0:00:30]} 22. Qf4 {[%emt 0:01:12]} Ne8 {[%emt 0:08:24]} ({Better is} 22... Rxe2 23. Rb7 Rc8) 23. Rb6 {[%emt 0:04:16] White is more active.} Rxe2 $2 {[%emt 0:03:07] [#] Black cannot hold the game after this.} (23... Kg7 $16) 24. Rxc6 $3 $18 {[%emt 0:01:02][%mdl 512]} Rd8 {[%emt 0:01:55]} (24... Kg7 $142 25. Rb6 Qc7) (24... Re1+ 25. Rxe1) 25. Rxd5 {[%emt 0:02:16]} Qxc6 {[%emt 0:04:44]} 26. Rxd8 {[%emt 0:01:18]} Qxc5 {[%emt 0:03:28]} 27. Bd5+ {[%emt 0:05:50]} Kg7 {[%emt 0:00:47]} 28. Rd7+ {[%emt 0:00:40]} Re7 {[%emt 0:00:44]} 29. Qxa4 {[%emt 0:01:54] Strongly threatening Qc6.} Nc7 $2 {[%emt 0:00:49]} (29... Kf8 30. Rxe7 Qxe7) 30. Qc4 {[%emt 0:05:05]} Rxd7 {[%emt 0:01:56]} 31. Qxc5 {[%emt 0:00:14] And now Qc6 would win.} Nxd5 {[%emt 0:00:02][%mdl 4096] Endgame KQ-KRN} 32. Qc6 {[%emt 0:02:18]} Rd8 {[%emt 0:00:03]} 33. Qe6 {[%emt 0:00:59]} Kh6 {[%emt 0:01:06]} 34. a4 {[%emt 0:00:35]} Ra8 {[%emt 0:00:37]} 35. Qxd5 {[%emt 0:00:18] White mates.} Rxa4 {[%emt 0:00:12] KQ-KR} 36. Qd2+ {[%emt 0:00:15]} g5 {[%emt 0:00:12]} 37. hxg5+ {[%emt 0:00:20]} fxg5 {[%emt 0:00:45]} 38. Qd6+ {[%emt 0:00:20]} Kh5 {[%emt 0:00:24]} 39. Qd1+ {[%emt 0:00:15]} Rg4 {[%emt 0:00:04]} 40. Qe2 {[%emt 0:00:16]} h6 {[%emt 0:00:09]} 41. Qe8# {[%emt 0:31:09] Weighted Error Value: White=0.18 (very precise) /Black=0.47} 1-0

[Event "39th Muensterland Open 2022"]
[Site "Muenster"]
[Date "2022.10.05"]
[Round "6.10"]
[White "Holtel, Jasper"]
[Black "Gasper, Joern"]
[Result "1-0"]
[ECO "A05"]
[WhiteElo "2413"]
[BlackElo "2057"]
[Annotator "TA"]
[PlyCount "115"]
[EventDate "2022.10.01"]
[EventType "swiss"]
[EventCountry "GER"]
[SourceTitle "playchess.com"]
[Source "ChessBase"]
[SourceQuality "1"]
[TimeControl "40/5400+30:1800+30"]

{[%evp 9,115,8,14,15,0,8,2,7,12,2,11,0,0,0,0,0,0,-5,-15,-50,-10,-10,-10,-10,-10,-46,-30,-33,-25,-44,-23,-36,-20,-22,0,-147,0,0,0,0,0,0,0,18,4,-12,-10,-10,-11,-11,-13,-18,0,0,0,0,0,0,0,0,0,0,0,0,143,-53,-54,-81,-50,-61,76,-8,0,-70,-79,-84,-5,-4,0,0,0,0,0,0,0,0,0,0,50,46,50,0,0,0,0,0,0,0,283,289,262,250,669,675,634,596,1418,1203]} 1. Nf3 {[%emt 0:00:01]} Nf6 {[%emt 0:00:09]} 2. g3 {[%emt 0:01:18]} b5 {[%emt 0:00:09]} 3. Bg2 {[%emt 0:00:24]} Bb7 {[%emt 0:00:05]} 4. Na3 {[%emt 0:00:55]} a6 {[%emt 0:01:07]} 5. c4 {[%emt 0:00:10]} e6 {[%emt 0:01:24]} 6. cxb5 {[%emt 0:02:23] A05: Réti Opening: 1 Nf3 Nf6.} (6. b3 {is interesting.} c5 7. cxb5 d5 8. Bb2) 6... Bxa3 {[%emt 0:00:40]} 7. bxa6 {[%emt 0:01:04]} Rxa6 {[%emt 0:00:06]} 8. bxa3 {[%emt 0:00:10] [#] The position is equal.} c5 $146 {[%emt 0:00:51]} ({Predecessor:} 8... O-O 9. O-O d6 10. d3 c5 11. Rb1 Ba8 12. e4 Nc6 13. Bb2 e5 14. Nd2 Nd7 {1-0 (96) Petrosian,T (2592)-Martirosyan,H (2516) Yerevan 2017}) 9. O-O {[%emt 0:01:15]} O-O {[%emt 0:00:11]} 10. Qc2 {[%emt 0:08:04]} d6 {[%emt 0:05:05][%cal Bd7d6,Bd6d5][%mdl 32]} 11. Bb2 {[%emt 0:01:41] Strongly threatening Ng5.} Nbd7 {[%emt 0:03:39]} 12. d3 {[%emt 0:11:44]} Qa8 {[%emt 0:02:53]} 13. Rfb1 {[%emt 0:09:09]} Rc8 {[%emt 0:06:21][%cal Oc5c4]} 14. Ne1 {[%emt 0:03:31] Threatens to win with Bxb7.} d5 {[%emt 0:18:26]} 15. Bxf6 {[%emt 0:13:34]} Nxf6 {[%emt 0:56:54]} 16. Rb5 {[%emt 0:09:07]} Nd7 {[%emt 0:00:00]} 17. Qb2 {[%emt 0:01:42]} Bc6 {[%emt 0:00:00][%mdl 1024] Black has compensation.} 18. Rb3 {[%emt 0:00:16]} Ba4 {[%emt 0:00:00]} 19. Rc3 {[%emt 0:00:13]} Qa7 {[%emt 0:00:00]} 20. Qd2 {[%emt 0:11:12]} Bc6 {[%emt 0:00:00]} 21. Nc2 {[%emt 0:03:34]} Ba4 {[%emt 0:00:00]} (21... d4 $5 22. Rb3 $8 Bxg2 23. Kxg2 Ra4 $11) 22. Nb4 {[%emt 0:02:06] [#]} (22. Ne1 $11) 22... Ra5 {[%emt 0:00:00]} (22... d4 $1 $17 {[%cal Rd4c3]} 23. Rcc1 Rb6) 23. d4 $11 {[%emt 0:00:38]} c4 {[%emt 0:00:00]} 24. e4 {[%emt 0:01:35]} Nf6 {[%emt 0:00:00]} 25. exd5 {[%emt 0:06:36]} exd5 {[%emt 0:00:00]} 26. Re1 {[%emt 0:00:30]} Bd7 {[%emt 0:00:00]} 27. Qf4 {[%emt 0:01:37]} (27. Re7 {with more complications.} Qc7 28. Bh3 Re8 29. Qe1) 27... Be6 {[%emt 0:00:00]} 28. Ree3 {[%emt 0:03:18]} h6 {[%emt 0:00:00]} 29. Bf3 {[%emt 0:01:44]} Qd7 {[%emt 0:01:11]} 30. h4 {[%emt 0:00:38]} Ne8 {[%emt 0:01:50]} 31. Re5 {[%emt 0:02:53]} Rca8 {[%emt 0:00:29]} 32. g4 {[%emt 0:01:10]} Nc7 {[%emt 0:00:56]} 33. g5 {[%emt 0:00:44]} hxg5 {[%emt 0:01:17]} ({But not} 33... Rxa3 34. Rxa3 Rxa3 35. gxh6 $16) 34. Rxg5 {[%emt 0:00:27]} Rxa3 {[%emt 0:03:01]} 35. Rxa3 {[%emt 0:01:01]} Rxa3 {[%emt 0:00:05]} 36. Kg2 {[%emt 0:01:08]} Ra5 {[%emt 0:00:27]} (36... Bh3+ $11 37. Kh2 Be6) 37. h5 $2 {[%emt 0:00:26] White has more active pieces.} ({White has to play} 37. Qe5 $16 {[%csl Gg5][%cal Re5g7]} f5 38. h5) 37... Ne8 $15 {[%emt 0:00:57]} 38. Qd2 {[%emt 0:00:58][%cal Ob4d3]} f6 {[%emt 0:00:44]} 39. Rg3 {[%emt 0:00:18]} Rb5 {[%emt 0:00:28]} (39... Ra8 $15 {stays ahead.}) 40. Bd1 {[%emt 0:00:41]} (40. h6 $16) 40... Rb6 $11 {[%emt 0:00:32] ...Nd6 is the strong threat.} 41. a3 {[%emt 0:02:44]} (41. h6 $11) 41... Nd6 $1 $15 {[%emt 0:08:19] aiming for ...Ne4.} 42. Bc2 {[%emt 0:01:20]} Kh8 {[%emt 0:07:38]} ({Black should play} 42... Bf5 $17 {Hoping for ...Bxc2.} 43. Kh2 Qf7 44. Bxf5 Nxf5) 43. Qf4 $11 {[%emt 0:03:23]} Nf7 {[%emt 0:01:19] Inhibits h6.} 44. Bg6 {[%emt 0:02:08]} Nh6 {[%emt 0:00:40]} 45. Re3 {[%emt 0:00:36]} Bf7 {[%emt 0:03:24]} 46. Qf3 {[%emt 0:02:38]} Be6 {[%emt 0:03:23]} 47. Re1 {[%emt 0:01:40]} Rd6 {[%emt 0:02:07]} 48. Qe3 {[%emt 0:02:44]} Nf5 {[%emt 0:03:01]} ({Better is} 48... Nf7 $11) 49. Qf4 $1 $14 {[%emt 0:00:52][%cal Oe1e6] And now Rxe6! would win.} Nh6 {[%emt 0:00:56]} 50. Kg1 {[%emt 0:02:11]} (50. a4 $1 $14) 50... Rb6 $11 {[%emt 0:00:21]} 51. Qe3 {[%emt 0:00:37]} Ng4 {[%emt 0:01:22]} 52. Qf3 {[%emt 0:00:39]} Nh6 {[%emt 0:00:18]} 53. Qf4 {[%emt 0:00:31]} Qd6 $2 {[%emt 0:01:09][%mdl 8192]} (53... Nf7 $11) 54. Qxd6 $18 {[%emt 0:00:52]} Rxd6 {[%emt 0:00:05] [#]} 55. a4 $1 {[%emt 0:00:21][%cal Ba3a4,Ba4a5,Ba5a6][%mdl 32]} Bf7 $2 {[%emt 0:01:53]} (55... Nf5) 56. a5 {[%emt 0:00:24] White is clearly winning.} Rd7 {[%emt 0:01:06]} 57. a6 {[%emt 0:01:03] Inhibits Rb7.} Kg8 {[%emt 0:02:02]} 58. Nc6 {[%emt 0:00:20] Weighted Error Value: White=0.19 (very precise) /Black=0.32} 1-0

[Event "39th Muensterland Open 2022"]
[Site "Muenster"]
[Date "2022.10.06"]
[Round "7.2"]
[White "Dordevic, Tom"]
[Black "Rott, Georg"]
[Result "0-1"]
[ECO "D02"]
[WhiteElo "1767"]
[BlackElo "2064"]
[Annotator "TA"]
[PlyCount "138"]
[EventDate "2022.10.01"]
[EventType "swiss"]
[EventCountry "GER"]
[SourceTitle "playchess.com"]
[Source "ChessBase"]
[SourceQuality "1"]
[TimeControl "40/5400+30:1800+30"]

{[%evp 17,138,32,20,0,4,5,10,-5,40,47,103,39,157,147,209,196,189,182,223,214,512,508,443,194,221,236,234,222,205,213,222,0,0,0,50,27,47,0,0,0,0,0,0,0,0,0,0,0,0,0,0,0,0,-29,-29,-29963,-29963,-7031,-7245,-29965,-29965,-29967,-29966,-12850,-12840,-2036,-306,-268,-269,-29970,-29971,-29971,-29972,-29968,-29971,-29971,-29969,-29976,-29977,-29977,-29978,-29978,-29979,-29979,-29980,-29980,-29981,-29980,-29981,-29981,-29982,-29985,-29982,-29983,-29982,-29982,-29980,-29984,-29985,-29986,-29985,-29985,-29986,-29986,-29985,-29985,-29985,-29985,-29985,-29985,-29986,-29986,-29987,-29987,-29988,-29987,-29988,-29992,-29990,-29990,-29991,-29991,-29992]} 1. d4 {[%emt 0:00:01]} d5 {[%emt 0:00:09]} 2. Nf3 {[%emt 0:00:04]} e6 {[%emt 0:00:12]} 3. Bf4 {[%emt 0:00:04]} c5 {[%emt 0:00:23]} 4. e3 {[%emt 0:00:03]} Nc6 {[%emt 0:00:27]} 5. Nbd2 {[%emt 0:00:04]} Nf6 {[%emt 0:00:50]} 6. c3 {[%emt 0:00:08]} Bd6 {[%emt 0:00:21]} 7. Bg3 {[%emt 0:00:07]} O-O {[%emt 0:00:18]} 8. Bd3 {[%emt 0:00:03]} Re8 {[%emt 0:00:10]} 9. Ne5 {[%emt 0:00:42]} Qc7 {[%emt 0:01:02][%cal Rc6e5]} 10. Ndf3 {[%emt 0:00:44] D02: 1 d4 d5 2 Nf3 sidelines, including 2...Nf6 3 g3 and 2...Nf6 3 Bf4.} c4 {[%emt 0:01:02]} 11. Bc2 {[%emt 0:00:42]} b5 {[%emt 0:00:50] [#]} 12. h4 $146 {[%emt 0:06:41] The position is equal.} ({Predecessor:} 12. Nxc6 Qxc6 13. Ne5 Qc7 14. a3 Bb7 15. O-O a5 16. f4 b4 17. axb4 axb4 18. Ng4 {1-0 (30) Chalmeta Ugas,J (1995)-Martinez Gutierrez,B (2057) Barcelona 2001}) 12... h6 {[%emt 0:00:45]} 13. Bh2 {[%emt 0:03:04]} Ne4 {[%emt 0:07:18]} (13... Nd7 $14) 14. g4 {[%emt 0:07:34]} (14. Nxc6 $1 $16 {Hoping for Bxd6.} Qxc6 15. g4) 14... f6 {[%emt 0:03:47]} ({Better is} 14... Nxe5 $1 $14 15. Bxe5 Bxe5 16. Nxe5 f6) 15. Nxc6 $16 {[%emt 1:17:59]} Bxh2 {[%emt 0:00:40]} (15... Qxc6 $16 16. Bxd6 Qxd6) 16. Rxh2 $18 {[%emt 1:17:58][%cal Oc6e5] Nce5! is the strong threat.} Qxc6 {[%emt 0:00:15]} 17. g5 $1 {[%emt 0:00:47]} e5 {[%emt 0:01:19][%cal Rh6g5] [#]} 18. gxh6 {[%emt 0:02:12]} gxh6 $2 {[%emt 0:00:04]} (18... Re7 19. Rg2 Bf5 20. Rxg7+ Rxg7 21. hxg7 Re8) 19. Rg2+ {[%emt 0:11:48]} Kh7 {[%emt 0:04:48]} 20. Nd2 {[%emt 0:02:58]} (20. dxe5 $142 Bh3 21. Rh2 (21. Nd4 Qc7 $18)) 20... Bf5 {[%emt 0:00:43]} 21. Qh5 {[%emt 0:02:34] Intending Qf7+ and mate.} Qe6 {[%emt 0:00:15] Inhibits Qf7+.} 22. O-O-O {[%emt 1:00:16]} Rg8 {[%emt 1:15:52]} 23. Rdg1 {[%emt 0:01:43] Strongly threatening f3.} exd4 {[%emt 1:14:01]} 24. exd4 $2 {[%emt 0:05:33] Chess con chili.} ({White should play} 24. Nxe4 $18 {[%cal Oh5f5] Threatening mate with Qxf5+!} dxe4 25. cxd4 (25. exd4 Rxg2 26. Rxg2 Rg8 $18)) 24... Rxg2 $11 {[%emt 0:00:26]} 25. Rxg2 {[%emt 0:00:04]} Rg8 {[%emt 0:00:58]} (25... Nd6 $11) 26. Rxg8 $14 {[%emt 0:01:38]} Kxg8 {[%emt 0:00:08]} 27. Nxe4 {[%emt 0:01:28]} ({Don't go for} 27. Qxh6 $2 Nxf2 28. Nf3 Qe2 $19) (27. Nf1 $14 {is more appropriate.}) 27... Bxe4 $11 {[%emt 0:00:27]} 28. Qxh6 {[%emt 0:01:34] And now Qe3 would win.} Bxc2 {[%emt 0:00:33]} 29. Kxc2 $14 {[%emt 0:00:09][%mdl 4096] Endgame Threatens to win with Qg6+. KQ-KQ} Qe2+ {[%emt 0:00:13]} 30. Qd2 {[%emt 0:00:18]} Qe4+ {[%emt 1:12:32]} 31. Kc1 {[%emt 0:00:35]} Qxh4 {[%emt 0:02:02]} 32. Qe3 {[%emt 0:01:50]} Kf7 {[%emt 0:00:28]} 33. Kd2 {[%emt 0:01:26]} Qg5 {[%emt 0:02:43]} 34. Ke2 {[%emt 0:07:22]} Qg6 {[%emt 0:00:57]} 35. a3 {[%emt 0:01:43]} Qc2+ {[%emt 1:08:36]} 36. Qd2 $2 {[%emt 0:00:12][%mdl 8192] [#]} (36. Kf1 $11) 36... Qxd2+ $1 {[%emt 0:00:44]} 37. Kxd2 {[%emt 0:00:04] KP-KP} Kg6 {[%emt 0:00:11]} 38. Ke3 {[%emt 0:39:27]} Kg5 {[%emt 1:05:37]} 39. Kf3 {[%emt 0:00:25]} Kf5 {[%emt 0:03:59]} 40. Kg3 {[%emt 0:00:15]} Ke4 {[%emt 0:02:34]} 41. Kg4 {[%emt 0:30:51]} f5+ $2 {[%emt 0:32:25]} (41... a5 {White must now prevent ...Kd3.} 42. Kh5 Kd3) 42. Kg5 $19 {[%emt 0:01:40][%cal Of2f3]} f4 {[%emt 0:00:09][%cal Bf5f4,Bf4f3][%mdl 32] ( -> ...f3)} 43. Kg4 {[%emt 0:02:08]} (43. Kf6 $19 Kd3 44. Ke6) 43... f3 {[%emt 0:05:22] Black mates.} 44. Kg3 {[%emt 0:00:57]} a5 {[%emt 0:00:19]} 45. Kg4 {[%emt 0:00:09]} Kd3 {[%emt 0:00:55]} 46. Kxf3 {[%emt 0:00:14]} Kc2 {[%emt 0:00:06]} 47. Ke2 {[%emt 0:04:46]} Kxb2 {[%emt 0:00:08]} 48. f4 {[%emt 0:04:30]} b4 {[%emt 0:01:29]} 49. axb4 {[%emt 0:04:30]} axb4 {[%emt 0:00:08]} 50. f5 {[%emt 0:00:09]} bxc3 {[%emt 0:00:22] K3P-KPP} 51. f6 {[%emt 0:00:03]} c2 {[%emt 0:00:07]} 52. f7 {[%emt 0:00:02]} c1=Q {[%emt 0:00:09]} 53. f8=Q {[%emt 0:00:04] KQ-KQ} Qc2+ {[%emt 0:00:20]} 54. Kf1 {[%emt 0:01:38]} Qd1+ {[%emt 0:00:23]} 55. Kf2 {[%emt 0:01:10]} Qxd4+ {[%emt 0:00:09]} 56. Ke1 {[%emt 0:00:02]} Qc3+ {[%emt 0:00:57]} 57. Ke2 {[%emt 0:00:04]} d4 {[%emt 0:00:25][%cal Bd5d4,Bd4d3][%mdl 32]} 58. Kd1 {[%emt 0:00:39]} Qc1+ {[%emt 0:02:13]} 59. Ke2 {[%emt 0:00:05]} d3+ {[%emt 0:00:39]} 60. Kf2 {[%emt 0:00:03]} Qd2+ {[%emt 0:53:03]} 61. Kf1 {[%emt 0:00:34]} Qe2+ {[%emt 0:05:05]} 62. Kg1 {[%emt 0:00:04]} Qe1+ {[%emt 0:03:54]} 63. Kg2 {[%emt 0:00:05]} Qe4+ {[%emt 0:00:13]} 64. Kf1 {[%emt 0:00:41]} c3 {[%emt 0:00:18][%cal Bc4c3,Bc3c2][%mdl 32]} 65. Qb8+ {[%emt 0:01:53]} Kc1 {[%emt 0:45:11]} 66. Qa7 {[%emt 0:00:18]} c2 {[%emt 0:01:01]} 67. Qa5 {[%emt 0:00:45]} Qe2+ {[%emt 0:00:31]} 68. Kg1 {[%emt 0:00:06]} Qd1+ {[%emt 0:00:08]} 69. Kf2 {[%emt 0:01:02]} Qd2+ {[%emt 0:00:07] What a bad dream for White.  Weighted Error Value: White=0.49/Black=0.31} 0-1